fUST/lending_fUST_20240919
["ID","MTS","AMOUNT","RATE_DAILY","PERIOD"]
[338578764,1726745432779,-184.86696316,0.00016328,2]
[338578765,1726745432791,-1000.0,0.00016328,2]
[338578766,1726745432803,-22911.60559249,0.00016328,2]
[338578775,1726745438474,-5559.49440751,0.00016328,2]
[338578776,1726745438485,-184.86696316,0.00016331,2]
[338578777,1726745438496,-184.86696316,0.00016333,2]
[338578778,1726745438507,-184.86696316,0.00016336,2]
[338578779,1726745438517,-858.87060372,0.00016338,2]
[338578780,1726745438527,-184.86696316,0.00016338,2]
[338578781,1726745438541,-500.0,0.00016417,2]
[338578782,1726745438551,-500.0,0.00016417,2]
[338578783,1726745438562,-500.0,0.00016417,2]
[338578784,1726745438572,-325.85069674,0.00016417,2]
[338578785,1726745438582,-276647.451056,0.00016418,2]
[338578786,1726745438592,-1000.0,0.00016427,2]
[338578787,1726745438602,-1084.22700737,0.00016427,2]
[338578788,1726745438613,-1000.0,0.00016428,2]
[338578789,1726745438623,-500.0,0.00016437,2]
[338578790,1726745438637,-500.0,0.00016437,2]
[338578791,1726745438647,-500.0,0.00016437,2]
[338578792,1726745438659,-394.63417136,0.00016437,2]
[338578793,1726745438669,-500.0,0.00016437,2]
[338578794,1726745438680,-500.0,0.00016437,2]
[338578795,1726745438690,-389.85827932,0.00016437,2]
[338578796,1726745438700,-566.53733271,0.00016437,2]
[338578797,1726745438710,-500.0,0.00016437,2]
[338578798,1726745438721,-500.0,0.00016437,2]
[338578799,1726745438732,-500.0,0.00016437,2]
[338578800,1726745438744,-500.0,0.00016437,2]
[338578801,1726745438756,-500.0,0.00016437,2]
[338578802,1726745438767,-500.0,0.00016437,2]
[338578803,1726745438777,-232.8279927,0.00016437,2]
[338578804,1726745438787,-500.0,0.00016437,2]
[338578805,1726745438798,-500.0,0.00016437,2]
[338578806,1726745438809,-381.367834,0.00016437,2]
[338578807,1726745438819,-500.0,0.00016437,2]
[338578808,1726745438830,-500.0,0.00016437,2]
[338578809,1726745438840,-500.0,0.00016437,2]
[338578810,1726745438850,-500.0,0.00016437,2]
[338578811,1726745438860,-500.0,0.00016437,2]
[338578812,1726745438870,-500.0,0.00016437,2]
[338578813,1726745438881,-500.0,0.00016437,2]
[338578814,1726745438894,-373.24276838,0.00016437,2]
[338578815,1726745438904,-500.0,0.00016437,2]
[338578816,1726745438914,-500.0,0.00016437,2]
[338578817,1726745438925,-500.0,0.00016437,2]
[338578818,1726745438935,-500.0,0.00016437,2]
[338578819,1726745438945,-650.0,0.00016437,2]
[338578820,1726745438955,-500.0,0.00016437,2]
[338578821,1726745438965,-500.0,0.00016437,2]
[338578822,1726745438974,-169.32771625,0.00016438,2]
[338578823,1726745438985,-500.0,0.00016438,2]
[338578824,1726745438995,-500.0,0.00016438,2]
[338578825,1726745439006,-500.0,0.00016438,2]
[338578826,1726745439016,-506.13118977,0.00016438,2]
[338578827,1726745439027,-500.0,0.00016438,2]
[338578828,1726745439037,-500.0,0.00016438,2]
[338578829,1726745439047,-500.0,0.00016438,2]
[338578830,1726745439058,-500.0,0.00016438,2]
[338578831,1726745439068,-500.0,0.00016438,2]
[338578832,1726745439078,-523.41655012,0.00016438,2]
[338578833,1726745439088,-500.0,0.00016438,2]
[338578834,1726745439098,-500.0,0.00016438,2]
[338578835,1726745439109,-500.0,0.00016438,2]
[338578836,1726745439119,-500.0,0.00016438,2]
[338578837,1726745439129,-500.0,0.00016438,2]
[338578838,1726745439140,-500.0,0.00016438,2]
[338578839,1726745439150,-500.0,0.00016438,2]
[338578840,1726745439161,-500.0,0.00016438,2]
[338578841,1726745439171,-500.0,0.00016438,2]
[338578842,1726745439181,-500.0,0.00016438,2]
[338578843,1726745439191,-500.0,0.00016438,2]
[338578844,1726745439201,-500.0,0.00016438,2]
[338578845,1726745439211,-500.0,0.00016438,2]
[338578846,1726745439221,-500.29991761,0.00016438,2]
[338578847,1726745439231,-500.0,0.00016438,2]
[338578848,1726745439241,-500.0,0.00016438,2]
[338578849,1726745439251,-1088.79,0.00016438,2]
[338578850,1726745439261,-500.0,0.00016438,2]
[338578851,1726745439702,-725.67,0.00016438,2]
[338578852,1726745439722,-1073.51,0.00016438,2]
[338578853,1726745439743,-1314.26,0.00016438,2]
[338578854,1726745439759,-528.91,0.00016438,2]
[338578855,1726745439767,-1199.71,0.00016438,2]
[338578856,1726745439777,-500.0,0.00016438,2]
[338578857,1726745439787,-562.94,0.00016438,2]
[338578858,1726745439795,-500.0,0.00016438,2]
[338578859,1726745439804,-500.0,0.00016438,2]
[338578860,1726745439812,-587.69,0.00016438,2]
[338578861,1726745439821,-1245.92,0.00016438,2]
[338578862,1726745439830,-500.0,0.00016438,2]
[338578863,1726745439840,-789.2,0.00016438,2]
[338578864,1726745439849,-500.0,0.00016438,2]
[338578865,1726745439859,-500.0,0.00016438,2]
[338578866,1726745439868,-510.72285557,0.00016438,2]
[338578867,1726745439879,-500.0,0.00016438,2]
[338578868,1726745439890,-500.0,0.00016438,2]
[338578869,1726745439901,-500.0,0.00016438,2]
[338578870,1726745439911,-791.12,0.00016438,2]
[338578871,1726745439920,-500.0,0.00016438,2]
[338578872,1726745439929,-500.0,0.00016438,2]
[338578873,1726745439939,-500.0,0.00016438,2]
[338578874,1726745439948,-500.0,0.00016438,2]
[338578875,1726745439958,-500.0,0.00016438,2]
[338578876,1726745439967,-200.0,0.00016438,2]
[338578877,1726745439976,-500.0,0.00016438,2]
[338578878,1726745439986,-500.0,0.00016438,2]
[338578879,1726745439995,-1203.54,0.00016438,2]
[338578880,1726745440007,-500.0,0.00016438,2]
[338578882,1726745440017,-500.0,0.00016438,2]
[338578883,1726745440026,-194.74104936,0.00016438,2]
[338578884,1726745440036,-500.0,0.00016438,2]
[338578885,1726745440046,-655.43,0.00016438,2]
[338578886,1726745440056,-500.0,0.00016438,2]
[338578887,1726745440065,-500.0,0.00016438,2]
[338578888,1726745440075,-500.0,0.00016438,2]
[338578889,1726745440085,-537.5,0.00016438,2]
[338578891,1726745440095,-759.2,0.00016438,2]
[338578892,1726745440104,-617.50520587,0.00016438,2]
[338578894,1726745440114,-593.71,0.00016438,2]
[338578895,1726745440124,-500.0,0.00016438,2]
[338578896,1726745440136,-500.0,0.00016438,2]
[338578897,1726745440146,-500.0,0.00016438,2]
[338578898,1726745440157,-213.97306972,0.00016438,2]
[338578899,1726745440167,-629.52095067,0.00016438,2]
[338578901,1726745440176,-500.0,0.00016438,2]
[338578903,1726745440185,-804.91,0.00016438,2]
[338578904,1726745440195,-528.0,0.00016438,2]
[338578905,1726745440204,-500.0,0.00016438,2]
[338578906,1726745440213,-541.34807489,0.00016438,2]
[338578907,1726745440223,-500.0,0.00016438,2]
[338578908,1726745440232,-500.0,0.00016438,2]
[338578910,1726745440242,-502.20690733,0.00016438,2]
[338578912,1726745440251,-500.0,0.00016438,2]
[338578913,1726745440261,-618.91,0.00016438,2]
[338578914,1726745440271,-859.5,0.00016438,2]
[338578916,1726745440280,-500.0,0.00016438,2]
[338578917,1726745440289,-500.0,0.00016438,2]
[338578919,1726745440299,-500.0,0.00016438,2]
[338578921,1726745440309,-500.0,0.00016438,2]
[338578923,1726745440318,-500.0,0.00016438,2]
[338578925,1726745440329,-1034.49,0.00016438,2]
[338578927,1726745440339,-500.0,0.00016438,2]
[338578929,1726745440349,-500.0,0.00016438,2]
[338578931,1726745440360,-500.0,0.00016438,2]
[338578933,1726745440370,-500.0,0.00016438,2]
[338578934,1726745440379,-500.0,0.00016438,2]
[338578935,1726745440391,-500.0,0.00016438,2]
[338578936,1726745440400,-500.0,0.00016438,2]
[338578937,1726745440410,-500.0,0.00016438,2]
[338578938,1726745440419,-500.0,0.00016438,2]
[338578939,1726745440429,-500.0,0.00016438,2]
[338578940,1726745440438,-500.0,0.00016438,2]
[338578941,1726745440447,-500.0,0.00016438,2]
[338578942,1726745440456,-500.0,0.00016438,2]
[338578943,1726745440470,-500.0,0.00016438,2]
[338578944,1726745440480,-253.30135215,0.00016438,2]
[338578945,1726745440489,-650.08,0.00016438,2]
[338578946,1726745440499,-500.0,0.00016438,2]
[338578947,1726745440509,-500.0,0.00016438,2]
[338578948,1726745440519,-500.0,0.00016438,2]
[338578949,1726745440528,-501.44804604,0.00016438,2]
[338578950,1726745440539,-500.0,0.00016438,2]
[338578951,1726745440549,-1305.79,0.00016438,2]
[338578952,1726745440558,-500.0,0.00016438,2]
[338578953,1726745440568,-664.99,0.00016438,2]
[338578954,1726745440577,-500.0,0.00016438,2]
[338578955,1726745440587,-500.0,0.00016438,2]
[338578956,1726745440596,-682.03,0.00016438,2]
[338578957,1726745440606,-500.0,0.00016438,2]
[338578958,1726745440616,-617.83,0.00016438,2]
[338578959,1726745440625,-500.0,0.00016438,2]
[338578960,1726745440636,-500.0,0.00016438,2]
[338578961,1726745440646,-500.0,0.00016438,2]
[338578962,1726745440656,-500.0,0.00016438,2]
[338578963,1726745440665,-500.0,0.00016438,2]
[338578964,1726745440675,-1454.38,0.00016438,2]
[338578965,1726745440684,-460.07200729,0.00016438,2]
[338578966,1726745440762,-39.92799271,0.00016438,2]
[338578967,1726745440771,-500.0,0.00016438,2]
[338578968,1726745440781,-740.58,0.00016438,2]
[338578969,1726745440790,-500.0,0.00016438,2]
[338578970,1726745440799,-500.0,0.00016438,2]
[338578971,1726745440809,-601.62,0.00016438,2]
[338578972,1726745440818,-500.0,0.00016438,2]
[338578973,1726745440827,-500.0,0.00016438,2]
[338578974,1726745440837,-500.0,0.00016438,2]
[338578975,1726745440846,-500.0,0.00016438,2]
[338578976,1726745440855,-500.0,0.00016438,2]
[338578977,1726745440864,-500.0,0.00016438,2]
[338578978,1726745440875,-1615.86,0.00016438,2]
[338578979,1726745440885,-624.29,0.00016438,2]
[338578980,1726745440895,-500.0,0.00016438,2]
[338578981,1726745440904,-263.10537409,0.00016438,2]
[338578982,1726745441162,-335.96462591,0.00016438,2]
[338578983,1726745441171,-500.0,0.00016438,2]
[338578984,1726745441180,-500.0,0.00016438,2]
[338578985,1726745441189,-500.0,0.00016438,2]
[338578986,1726745441199,-500.0,0.00016438,2]
[338578987,1726745441208,-500.0,0.00016438,2]
[338578988,1726745441218,-1017.87,0.00016438,2]
[338578989,1726745441227,-500.0,0.00016438,2]
[338578990,1726745441237,-500.0,0.00016438,2]
[338578991,1726745441247,-500.0,0.00016438,2]
[338578992,1726745441257,-500.0,0.00016438,2]
[338578993,1726745441266,-500.0,0.00016438,2]
[338578994,1726745441275,-706.51,0.00016438,2]
[338578995,1726745441285,-500.0,0.00016438,2]
[338578996,1726745441294,-500.0,0.00016438,2]
[338578997,1726745441303,-493.30502828,0.00016438,2]
[338578998,1726745441313,-500.0,0.00016438,2]
[338578999,1726745441322,-500.0,0.00016438,2]
[338579000,1726745441332,-580.67,0.00016438,2]
[338579001,1726745441342,-500.0,0.00016438,2]
[338579002,1726745441352,-500.0,0.00016438,2]
[338579003,1726745441361,-500.0,0.00016438,2]
[338579004,1726745441370,-500.0,0.00016438,2]
[338579005,1726745441380,-500.0,0.00016438,2]
[338579006,1726745441390,-500.0,0.00016438,2]
[338579007,1726745441400,-500.0,0.00016438,2]
[338579008,1726745441409,-847.55,0.00016438,2]
[338579009,1726745441420,-500.0,0.00016438,2]
[338579010,1726745441430,-755.15,0.00016438,2]
[338579011,1726745441441,-689.91,0.00016438,2]
[338579012,1726745441451,-559.66,0.00016438,2]
[338579013,1726745441467,-500.0,0.00016438,2]
[338579014,1726745441476,-500.0,0.00016438,2]
[338579015,1726745441485,-500.0,0.00016438,2]
[338579016,1726745441494,-500.0,0.00016438,2]
[338579017,1726745441504,-500.0,0.00016438,2]
[338579018,1726745441514,-500.0,0.00016438,2]
[338579019,1726745441523,-500.0,0.00016438,2]
[338579020,1726745441532,-500.0,0.00016438,2]
[338579021,1726745441541,-500.0,0.00016438,2]
[338579022,1726745441551,-500.0,0.00016438,2]
[338579023,1726745441560,-500.0,0.00016438,2]
[338579024,1726745441569,-500.0,0.00016438,2]
[338579025,1726745441578,-923.86,0.00016438,2]
[338579026,1726745441588,-500.0,0.00016438,2]
[338579027,1726745441598,-2410.95,0.00016438,2]
[338579028,1726745441607,-1565.07,0.00016438,2]
[338579029,1726745441617,-500.0,0.00016438,2]
[338579030,1726745441627,-550.19737991,0.00016438,2]
[338579031,1726745441637,-714.13,0.00016438,2]
[338579032,1726745441647,-814.61,0.00016438,2]
[338579033,1726745441658,-500.0,0.00016438,2]
[338579034,1726745441667,-500.0,0.00016438,2]
[338579035,1726745441676,-500.0,0.00016438,2]
[338579036,1726745441686,-500.0,0.00016438,2]
[338579037,1726745441696,-1189.77,0.00016438,2]
[338579038,1726745441705,-500.0,0.00016438,2]
[338579039,1726745441715,-596.19,0.00016438,2]
[338579040,1726745441724,-500.0,0.00016438,2]
[338579041,1726745441734,-1011.64,0.00016438,2]
[338579042,1726745441744,-500.0,0.00016438,2]
[338579043,1726745441753,-601.85,0.00016438,2]
[338579044,1726745441762,-500.0,0.00016438,2]
[338579045,1726745441772,-500.0,0.00016438,2]
[338579046,1726745441782,-500.0,0.00016438,2]
[338579047,1726745441792,-500.0,0.00016438,2]
[338579048,1726745441801,-1816.62,0.00016438,2]
[338579049,1726745441811,-1823.38,0.00016438,2]
[338579050,1726745441821,-500.0,0.00016438,2]
[338579051,1726745441831,-911.58,0.00016438,2]
[338579052,1726745441840,-500.0,0.00016438,2]
[338579053,1726745441850,-1181.93,0.00016438,2]
[338579054,1726745441859,-616.74859558,0.00016438,2]
[338579055,1726745441869,-1269.83,0.00016438,2]
[338579056,1726745441878,-1033.25,0.00016438,2]
[338579057,1726745441889,-500.0,0.00016438,2]
[338579058,1726745441899,-535.56,0.00016438,2]
[338579059,1726745441908,-500.0,0.00016438,2]
[338579060,1726745441918,-500.0,0.00016438,2]
[338579061,1726745441928,-500.0,0.00016438,2]
[338579062,1726745441939,-798.79,0.00016438,2]
[338579063,1726745441949,-500.0,0.00016438,2]
[338579064,1726745441959,-773.96,0.00016438,2]
[338579065,1726745441969,-1537.52,0.00016438,2]
[338579066,1726745441980,-500.0,0.00016438,2]
[338579067,1726745441990,-533.0,0.00016438,2]
[338579068,1726745441999,-500.0,0.00016438,2]
[338579069,1726745442009,-965.79,0.00016438,2]
[338579070,1726745442020,-500.0,0.00016438,2]
[338579071,1726745442029,-925.93,0.00016438,2]
[338579072,1726745442038,-510.52,0.00016438,2]
[338579073,1726745442048,-500.0,0.00016438,2]
[338579074,1726745442059,-500.0,0.00016438,2]
[338579075,1726745442070,-511.06,0.00016438,2]
[338579076,1726745442079,-717.35,0.00016438,2]
[338579077,1726745442089,-500.0,0.00016438,2]
[338579078,1726745442099,-982.08,0.00016438,2]
[338579079,1726745442108,-500.0,0.00016438,2]
[338579080,1726745442118,-500.0,0.00016438,2]
[338579081,1726745442129,-500.0,0.00016438,2]
[338579082,1726745442148,-500.0,0.00016438,2]
[338579083,1726745442158,-500.0,0.00016438,2]
[338579084,1726745442167,-892.49,0.00016438,2]
[338579085,1726745442177,-1305.64,0.00016438,2]
[338579086,1726745442187,-500.0,0.00016438,2]
[338579087,1726745442198,-500.0,0.00016438,2]
[338579088,1726745442208,-500.0,0.00016438,2]
[338579089,1726745442217,-500.0,0.00016438,2]
[338579090,1726745442227,-487.51416255,0.00016438,2]
[338579091,1726745442237,-821.31,0.00016438,2]
[338579092,1726745442247,-500.0,0.00016438,2]
[338579093,1726745442256,-500.0,0.00016438,2]
[338579094,1726745442266,-500.0,0.00016438,2]
[338579095,1726745442275,-500.0,0.00016438,2]
[338579096,1726745442284,-500.0,0.00016438,2]
[338579097,1726745442294,-500.0,0.00016438,2]
[338579098,1726745442303,-500.0,0.00016438,2]
[338579099,1726745442312,-500.0,0.00016438,2]
[338579100,1726745442323,-500.0,0.00016438,2]
[338579101,1726745442331,-1443.16,0.00016438,2]
[338579102,1726745442341,-979.85,0.00016438,2]
[338579103,1726745442351,-500.0,0.00016438,2]
[338579104,1726745442362,-500.0,0.00016438,2]
[338579105,1726745442372,-214.97556302,0.00016438,2]
[338579106,1726745442382,-1427.25,0.00016438,2]
[338579107,1726745442396,-500.0,0.00016438,2]
[338579108,1726745442405,-500.0,0.00016438,2]
[338579109,1726745442415,-500.0,0.00016438,2]
[338579110,1726745442425,-538.45,0.00016438,2]
[338579111,1726745442435,-816.04,0.00016438,2]
[338579112,1726745442446,-754.27,0.00016438,2]
[338579113,1726745442456,-1738.75,0.00016438,2]
[338579114,1726745442469,-500.0,0.00016438,2]
[338579115,1726745442480,-500.0,0.00016438,2]
[338579116,1726745442489,-351.46945434,0.00016438,2]
[338579117,1726745442499,-500.0,0.00016438,2]
[338579118,1726745442510,-886.05,0.00016438,2]
[338579119,1726745442520,-547.84,0.00016438,2]
[338579120,1726745442529,-500.0,0.00016438,2]
[338579121,1726745442539,-1949.76,0.00016438,2]
[338579122,1726745442548,-718.87,0.00016438,2]
[338579123,1726745442558,-522.24562387,0.00016438,2]
[338579124,1726745442568,-1352.21,0.00016438,2]
[338579125,1726745442578,-500.0,0.00016438,2]
[338579126,1726745442588,-219.55260321,0.00016438,2]
[338579127,1726745442597,-500.0,0.00016438,2]
[338579128,1726745442607,-1121.5,0.00016438,2]
[338579129,1726745442619,-500.0,0.00016438,2]
[338579130,1726745442628,-793.84,0.00016438,2]
[338579131,1726745442641,-500.0,0.00016438,2]
[338579132,1726745442651,-500.0,0.00016438,2]
[338579133,1726745442662,-500.0,0.00016438,2]
[338579134,1726745442672,-902.76,0.00016438,2]
[338579135,1726745442682,-500.0,0.00016438,2]
[338579136,1726745442691,-500.0,0.00016438,2]
[338579137,1726745442865,-798.22,0.00016438,2]
[338579138,1726745442887,-2207.32,0.00016438,2]
[338579139,1726745442897,-2283.98,0.00016438,2]
[338579140,1726745442908,-911.72,0.00016438,2]
[338579141,1726745442919,-500.0,0.00016438,2]
[338579142,1726745442928,-500.0,0.00016438,2]
[338579143,1726745442938,-914.97,0.00016438,2]
[338579144,1726745442949,-696.45,0.00016438,2]
[338579145,1726745442959,-500.0,0.00016438,2]
[338579146,1726745442969,-863.47,0.00016438,2]
[338579147,1726745442979,-500.0,0.00016438,2]
[338579148,1726745442988,-500.0,0.00016438,2]
[338579149,1726745442997,-500.0,0.00016438,2]
[338579150,1726745443007,-500.0,0.00016438,2]
[338579151,1726745443017,-683.64,0.00016438,2]
[338579153,1726745443027,-500.0,0.00016438,2]
[338579156,1726745443037,-835.17,0.00016438,2]
[338579159,1726745443047,-500.0,0.00016438,2]
[338579162,1726745443058,-500.0,0.00016438,2]
[338579164,1726745443068,-907.83,0.00016438,2]
[338579165,1726745443078,-500.0,0.00016438,2]
[338579166,1726745443087,-500.0,0.00016438,2]
[338579167,1726745443096,-500.0,0.00016438,2]
[338579169,1726745443106,-508.83,0.00016438,2]
[338579172,1726745443116,-500.0,0.00016438,2]
[338579174,1726745443126,-1021.41,0.00016438,2]
[338579175,1726745443136,-500.0,0.00016438,2]
[338579176,1726745443146,-500.0,0.00016438,2]
[338579177,1726745443156,-500.0,0.00016438,2]
[338579178,1726745443166,-525.13,0.00016438,2]
[338579179,1726745443175,-500.0,0.00016438,2]
[338579180,1726745443185,-500.0,0.00016438,2]
[338579181,1726745443195,-500.0,0.00016438,2]
[338579182,1726745443204,-500.0,0.00016438,2]
[338579183,1726745443214,-530.54,0.00016438,2]
[338579184,1726745443223,-929.36,0.00016438,2]
[338579185,1726745443233,-655.79,0.00016438,2]
[338579186,1726745443243,-500.0,0.00016438,2]
[338579188,1726745443252,-500.0,0.00016438,2]
[338579189,1726745443262,-500.0,0.00016438,2]
[338579190,1726745443271,-500.0,0.00016438,2]
[338579191,1726745443280,-500.0,0.00016438,2]
[338579192,1726745443290,-500.0,0.00016438,2]
[338579193,1726745443301,-500.0,0.00016438,2]
[338579194,1726745443312,-1203.66,0.00016438,2]
[338579195,1726745443322,-500.0,0.00016438,2]
[338579196,1726745443332,-500.0,0.00016438,2]
[338579197,1726745443342,-500.0,0.00016438,2]
[338579198,1726745443352,-500.0,0.00016438,2]
[338579199,1726745443362,-500.0,0.00016438,2]
[338579200,1726745443372,-500.0,0.00016438,2]
[338579201,1726745443382,-728.59,0.00016438,2]
[338579202,1726745443394,-500.0,0.00016438,2]
[338579203,1726745443403,-500.0,0.00016438,2]
[338579204,1726745443413,-500.0,0.00016438,2]
[338579205,1726745443423,-500.0,0.00016438,2]
[338579206,1726745443435,-500.0,0.00016438,2]
[338579207,1726745443445,-1726.45,0.00016438,2]
[338579208,1726745443455,-716.43,0.00016438,2]
[338579209,1726745443469,-500.0,0.00016438,2]
[338579210,1726745443478,-660.93,0.00016438,2]
[338579211,1726745443488,-500.0,0.00016438,2]
[338579212,1726745443498,-500.0,0.00016438,2]
[338579213,1726745443507,-500.0,0.00016438,2]
[338579214,1726745443517,-500.0,0.00016438,2]
[338579215,1726745443527,-1254.1,0.00016438,2]
[338579216,1726745443537,-500.0,0.00016438,2]
[338579217,1726745443547,-2664.97,0.00016438,2]
[338579218,1726745443557,-510.72935629,0.00016438,2]
[338579219,1726745443567,-500.44329615,0.00016438,2]
[338579220,1726745443577,-787.1,0.00016438,2]
[338579221,1726745443587,-500.0,0.00016438,2]
[338579222,1726745443599,-500.0,0.00016438,2]
[338579223,1726745443609,-668.97,0.00016438,2]
[338579224,1726745443619,-598.66,0.00016438,2]
[338579225,1726745443630,-500.0,0.00016438,2]
[338579226,1726745443641,-500.0,0.00016438,2]
[338579227,1726745443651,-500.0,0.00016438,2]
[338579228,1726745443661,-500.0,0.00016438,2]
[338579229,1726745443670,-713.08,0.00016438,2]
[338579230,1726745443680,-500.0,0.00016438,2]
[338579231,1726745443690,-500.0,0.00016438,2]
[338579232,1726745443700,-500.0,0.00016438,2]
[338579233,1726745443710,-500.0,0.00016438,2]
[338579234,1726745443720,-1827.31,0.00016438,2]
[338579235,1726745443730,-500.0,0.00016438,2]
[338579236,1726745443740,-1453.15,0.00016438,2]
[338579237,1726745443750,-500.0,0.00016438,2]
[338579239,1726745443760,-500.0,0.00016438,2]
[338579240,1726745443770,-500.0,0.00016438,2]
[338579241,1726745443780,-500.0,0.00016438,2]
[338579242,1726745443790,-1475.83,0.00016438,2]
[338579243,1726745443799,-500.0,0.00016438,2]
[338579244,1726745443809,-500.0,0.00016438,2]
[338579245,1726745443818,-2327.77,0.00016438,2]
[338579246,1726745443828,-500.0,0.00016438,2]
[338579247,1726745443838,-500.0,0.00016438,2]
[338579248,1726745443848,-500.0,0.00016438,2]
[338579249,1726745443858,-813.2,0.00016438,2]
[338579250,1726745443868,-500.0,0.00016438,2]
[338579251,1726745443878,-842.57,0.00016438,2]
[338579252,1726745443888,-1835.05,0.00016438,2]
[338579253,1726745443898,-500.0,0.00016438,2]
[338579254,1726745443907,-500.0,0.00016438,2]
[338579255,1726745443916,-500.0,0.00016438,2]
[338579256,1726745443926,-500.0,0.00016438,2]
[338579257,1726745443936,-500.0,0.00016438,2]
[338579258,1726745443945,-1094.22,0.00016438,2]
[338579260,1726745443955,-257.16,0.00016438,2]
[338579262,1726745443966,-1386.11,0.00016438,2]
[338579264,1726745443976,-500.0,0.00016438,2]
[338579266,1726745443985,-500.0,0.00016438,2]
[338579267,1726745443995,-500.0,0.00016438,2]
[338579269,1726745444005,-563.89723577,0.00016438,2]
[338579271,1726745444015,-500.0,0.00016438,2]
[338579273,1726745444025,-218.78350112,0.00016438,2]
[338579275,1726745444035,-976.67,0.00016438,2]
[338579276,1726745444044,-500.0,0.00016438,2]
[338579277,1726745444055,-500.0,0.00016438,2]
[338579278,1726745444065,-500.0,0.00016438,2]
[338579279,1726745444075,-500.0,0.00016438,2]
[338579280,1726745444085,-500.0,0.00016438,2]
[338579281,1726745444094,-2178.93,0.00016438,2]
[338579282,1726745444104,-500.29110923,0.00016438,2]
[338579283,1726745444114,-841.22,0.00016438,2]
[338579284,1726745444124,-500.0,0.00016438,2]
[338579285,1726745444134,-500.0,0.00016438,2]
[338579286,1726745444144,-500.0,0.00016438,2]
[338579287,1726745444154,-500.0,0.00016438,2]
[338579288,1726745444164,-1419.98,0.00016438,2]
[338579289,1726745444174,-500.0,0.00016438,2]
[338579290,1726745444184,-500.0,0.00016438,2]
[338579291,1726745444193,-500.0,0.00016438,2]
[338579292,1726745444203,-7789.48,0.00016438,2]
[338579293,1726745444212,-1079.81,0.00016438,2]
[338579294,1726745444222,-500.0,0.00016438,2]
[338579295,1726745444231,-1214.75,0.00016438,2]
[338579296,1726745444241,-500.0,0.00016438,2]
[338579297,1726745444251,-896.34,0.00016438,2]
[338579298,1726745444262,-1612.07,0.00016438,2]
[338579299,1726745444272,-500.0,0.00016438,2]
[338579300,1726745444281,-500.0,0.00016438,2]
[338579301,1726745444292,-600.1,0.00016438,2]
[338579302,1726745444303,-627.13,0.00016438,2]
[338579303,1726745444314,-500.0,0.00016438,2]
[338579304,1726745444323,-500.0,0.00016438,2]
[338579305,1726745444334,-500.0,0.00016438,2]
[338579306,1726745444344,-500.0,0.00016438,2]
[338579307,1726745444356,-500.0,0.00016438,2]
[338579308,1726745444365,-500.0,0.00016438,2]
[338579309,1726745444375,-630.76,0.00016438,2]